bitfinex/quotes_ETHUSD_20250414
["timestamp","ask_amount","ask_price","bid_price","bid_amount"]
[1744626362397,47.052,1657.6,1657.2,4.82741]
[1744626362556,4.82668,1657.5,1657.1,11.24668]
[1744626362893,4.82668,1657.5,1657.1,1.5913]
[1744626363095,4.82695,1657.4,1657.0,4.82799]
[1744626363305,4.82695,1657.4,1657.0,9.65587]
[1744626363653,51.87831,1657.6,1657.2,4.82738]
[1744626363859,51.87831,1657.6,1657.2,9.65462]
[1744626364166,47.052,1657.6,1657.3,4.82689]
[1744626364376,51.87847,1657.6,1657.2,4.82734]
[1744626364673,4.82664,1657.5,1657.1,9.65505]
[1744626364886,47.052,1657.6,1657.3,4.82702]
[1744626365086,47.052,1657.6,1657.4,4.8266]
[1744626365276,51.87825,1657.6,1657.3,4.82709]
[1744626365473,47.052,1657.6,1657.3,4.82709]
[1744626365771,47.052,1657.6,1657.3,4.82701]
[1744626365987,47.052,1657.6,1657.3,9.65397]
[1744626366154,47.052,1657.6,1657.4,4.82683]
[1744626366356,51.87842,1657.6,1657.2,4.82729]
[1744626366586,4.82667,1657.5,1657.1,9.6554]
[1744626366803,51.87842,1657.6,1657.2,4.82727]
[1744626367220,4.82725,1657.3,1657.0,4.8279]
[1744626367371,6.33285,1657.3,1657.0,4.8279]
[1744626367574,11.16014,1657.3,1656.9,4.82829]
[1744626367775,12.276154,1657.3,1656.9,4.82829]
[1744626368098,12.276154,1657.3,1656.9,4.82819]
[1744626368459,7.448864,1657.3,1656.9,9.65633]
[1744626368660,12.276184,1657.3,1656.9,4.82814]
[1744626369090,7.448864,1657.3,1656.9,4.82814]
[1744626369294,3.0,1657.5,1656.8,1.5913]
[1744626369497,7.82674,1657.5,1657.2,4.82739]
[1744626369800,12.65351,1657.5,1657.1,4.82769]
[1744626369988,12.65964324,1657.5,1657.1,4.82758]
[1744626370196,7.82674,1657.5,1657.1,4.82758]
[1744626370359,3.0,1657.5,1657.2,4.82727]
[1744626370564,3.0,1657.5,1657.3,9.65404]
[1744626370892,48.7046,1657.6,1657.3,9.654]
[1744626371198,47.052,1657.6,1657.4,4.82671]
[1744626371500,47.052,1657.6,1657.1,4.8277]
[1744626371791,4.82672,1657.5,1657.1,4.82769]
[1744626371972,4.82672,1657.5,1657.2,4.82726]
[1744626372176,56.70472,1657.6,1657.2,9.65457]
[1744626372381,56.70471,1657.6,1657.2,9.65454]
[1744626372585,51.87829,1657.6,1657.2,9.65457]
[1744626372774,47.052,1657.6,1657.3,4.82689]
[1744626372987,47.052,1657.6,1657.4,4.8267]
[1744626374410,51.87826,1657.6,1657.3,4.82703]
[1744626374623,4.82626,1657.6,1657.2,4.8273]
[1744626374834,9.226,1657.7,1657.2,4.82741]
[1744626374986,9.226,1657.7,1657.5,4.82646]
[1744626375186,9.226,1657.7,1657.2,4.82741]
[1744626375187,9.226,1657.7,1657.4,4.82675]
[1744626375380,9.226,1657.7,1657.4,9.65343]
[1744626375924,14.05208,1657.7,1657.4,4.82669]
[1744626376088,9.226,1657.7,1657.5,4.8263]
[1744626376419,9.226,1657.7,1657.6,4.82625]
[1744626377226,54.87785,1658.1,1657.6,1.120465]
[1744626377227,56.41949182,1658.1,1657.6,1.120465]
[1744626377526,56.41949182,1658.1,1657.8,4.82557]
[1744626377719,56.41949182,1658.1,1657.8,9.65115]
[1744626377892,56.41949182,1658.1,1657.8,4.82557]
[1744626378080,55.967,1658.1,1658.0,4.82509]
[1744626378285,55.967,1658.1,1657.8,4.82563]
[1744626378485,60.7919,1658.1,1657.8,4.82563]
[1744626378729,55.967,1658.1,1657.8,4.82553]
[1744626378918,55.967,1658.1,1658.0,4.82509]
[1744626379319,55.967,1658.1,1657.9,4.82526]
[1744626379533,55.967,1658.1,1657.6,4.82625]
[1744626379731,55.967,1658.1,1658.0,4.82509]
[1744626381187,55.967,1658.1,1657.9,4.82525]
[1744626381587,55.967,1658.1,1657.9,4.82524]
[1744626381820,0.31471647,1659.0,1658.1,6.36089]
[1744626382020,0.31471647,1659.0,1658.9,4.82247]
[1744626382208,0.05,1659.4,1658.9,4.82229]
[1744626382386,0.05,1659.4,1658.7,4.82291]
[1744626382592,0.05,1659.4,1659.2,4.82144]
[1744626383121,7.87107,1659.4,1658.8,1.5148]
[1744626383415,7.87107,1659.4,1659.0,4.82214]
[1744626383416,6.298821,1659.4,1659.0,4.82214]
[1744626383624,0.05,1659.4,1659.2,4.82139]
[1744626383806,0.05,1659.4,1659.3,4.82131]
[1744626383985,0.05,1659.4,1659.2,4.82139]
[1744626384390,0.05,1659.4,1659.2,9.64286]
[1744626384730,0.05,1659.4,1659.3,4.82131]
[1744626385128,4.87103,1659.4,1659.1,4.82186]
[1744626385496,0.05,1659.4,1659.1,4.82186]
[1744626385799,4.87102,1659.4,1659.1,4.82186]
[1744626386109,0.05,1659.4,1659.2,4.82147]
[1744626386297,0.05,1659.4,1659.2,9.64294]
[1744626386621,0.05,1659.4,1659.2,4.82147]
[1744626386827,0.05,1659.4,1659.2,9.64295]
[1744626387027,0.05,1659.4,1659.2,4.82147]
[1744626387932,0.05,1659.4,1659.2,4.82144]
[1744626388106,0.05,1659.4,1659.2,6.33684]
[1744626388307,0.05,1659.4,1659.3,4.82131]
[1744626389627,0.05,1659.4,1659.2,6.33684]
[1744626390002,0.05,1659.4,1659.2,4.82144]
[1744626390202,0.05,1659.4,1659.3,4.82131]
[1744626391143,0.05,1659.4,1659.3,6.35111]
[1744626391343,0.05,1659.4,1659.3,8.26374555]
[1744626391544,0.05,1659.4,1659.3,8.32399635]
[1744626392044,0.05,1659.4,1659.3,8.26374555]
[1744626394876,0.05,1659.4,1659.3,8.32399501]
[1744626395178,0.05,1659.4,1659.3,8.26374555]
[1744626396345,0.05,1659.4,1659.3,8.3239939]
[1744626396546,3.0,1660.1,1659.9,4.81944]
[1744626396750,0.01827583,1660.2,1660.0,4.81917]
[1744626397045,0.01827583,1660.2,1660.0,4.81916]
[1744626397246,0.01827583,1660.2,1660.1,4.81898]
[1744626397683,0.01827583,1660.2,1660.1,5.84303049]
[1744626397853,0.01827583,1660.2,1660.1,7.44823049]
[1744626398058,0.01827583,1660.2,1660.1,7.387994]
[1744626398263,0.05,1660.4,1660.3,4.8184]
[1744626398469,0.05,1660.4,1660.3,9.55174544]
[1744626398672,0.05,1660.4,1660.3,10.98877598]
[1744626398857,0.05,1660.4,1660.3,11.478566]
[1744626399068,8.903,1661.2,1661.0,4.81637]
[1744626399273,0.05,1661.4,1661.0,4.81621]
[1744626399445,0.05,1661.4,1660.8,6.35774]
[1744626399645,0.05,1661.4,1661.2,4.81565]
[1744626399845,0.05,1661.4,1661.3,8.00803154]
[1744626400281,0.05,1661.4,1661.3,7.94783546]
[1744626401193,0.05,1661.4,1661.3,8.07280002]
[1744626402351,0.4076808,1662.1,1661.3,8.07280002]
[1744626402352,0.4076808,1662.1,1662.0,4.81347]
[1744626402586,0.4076808,1662.1,1662.0,4.8736294]
[1744626402782,0.4076808,1662.1,1662.0,4.81347]
[1744626403374,0.4076808,1662.1,1661.9,6.46957]
[1744626403559,0.4076808,1662.1,1662.0,4.81347]
[1744626404364,0.4076808,1662.1,1662.0,5.50259051]
[1744626404954,0.4076808,1662.1,1662.0,4.81347]
[1744626405155,0.4076808,1662.1,1661.8,9.62796]
[1744626405355,0.4076808,1662.1,1661.8,4.81402]
[1744626405555,0.4076808,1662.1,1661.8,4.81389]
[1744626405785,0.4076808,1662.1,1661.7,4.81432]
[1744626405963,5.2210808,1662.1,1661.7,4.81432]
[1744626406288,0.4076808,1662.1,1662.0,4.81347]
[1744626406853,0.4076808,1662.1,1661.9,4.81348]
[1744626407084,0.4076808,1662.1,1661.9,9.62709]
[1744626407294,0.4076808,1662.1,1662.0,4.81347]
[1744626407656,0.4076808,1662.1,1661.9,4.81348]
[1744626407857,4.81357,1662.0,1661.6,4.81454]
[1744626408071,5.2209908,1662.1,1661.6,0.06017588]
[1744626408284,6.22438088,1662.1,1661.7,4.81423]
[1744626408491,4.81364,1662.0,1661.7,4.81428]
[1744626408704,0.4076808,1662.1,1661.8,4.81389]
[1744626408995,0.4076808,1662.1,1661.8,9.6278]
[1744626409195,0.4076808,1662.1,1662.0,4.81347]
[1744626409489,0.4076808,1662.1,1661.9,4.81364]
[1744626409681,0.4076808,1662.1,1661.9,4.8136]
[1744626409861,0.4076808,1662.1,1662.0,4.81347]
[1744626410195,0.4076808,1662.1,1662.0,5.776177]
[1744626410492,0.4076808,1662.1,1662.0,7.396477]
[1744626411599,0.4076808,1662.1,1662.0,6.43377]
[1744626411956,0.4076808,1662.1,1662.0,4.81347]
[1744626412695,0.4076808,1662.1,1662.0,4.87363115]
[1744626412987,0.4076808,1662.1,1662.0,6.34767]
[1744626413193,0.4076808,1662.1,1662.0,6.40781688]
[1744626413366,0.4076808,1662.1,1662.0,8.33705257]
[1744626413566,0.05,1662.4,1662.0,8.88705257]
[1744626413780,0.05,1662.4,1662.3,4.8126]
[1744626414881,0.05,1662.4,1662.3,4.87274135]
[1744626415067,0.05,1662.4,1662.3,4.8126]
[1744626415962,0.05,1662.4,1662.3,6.16100979]
[1744626416507,0.05,1662.4,1662.3,6.100867]
[1744626418168,0.05,1662.4,1662.3,7.7580084]
[1744626418508,0.05,1662.4,1662.3,8.3080084]
[1744626418732,0.05,1662.4,1662.3,8.247867]
[1744626418909,1.5559,1663.1,1662.9,4.81087]
[1744626419070,1.5559,1663.1,1663.0,4.81058]
[1744626419472,15.67078,1663.4,1663.0,4.81046]
[1744626419700,10.8613,1663.4,1663.2,4.80986]
[1744626420080,0.6,1663.4,1663.2,4.80986]
[1744626420283,0.6,1663.4,1662.5,9.61221002]
[1744626420284,1.5838,1663.3,1662.5,9.61221002]
[1744626420466,4.81069,1663.0,1662.7,4.81133]
[1744626420666,10.3338,1663.3,1662.8,4.81099]
[1744626420667,4.81004,1663.2,1662.8,4.81099]
[1744626420867,4.81099,1662.9,1662.5,4.81188]
[1744626421108,1.6625,1662.8,1662.5,4.81188]
[1744626421322,4.81164,1662.7,1662.3,9.62499]
[1744626421482,4.81164,1662.7,1662.4,4.81222]
[1744626421677,4.81183,1662.6,1662.3,4.8126]
[1744626421878,4.81148,1662.7,1662.3,4.81248]
[1744626422286,4.81148,1662.7,1662.2,4.81287]
[1744626422287,4.81173,1662.7,1662.2,9.62567]
[1744626422505,4.81186,1662.6,1662.2,9.6256]
[1744626422704,20.0331,1662.8,1662.4,4.8123]
[1744626422905,12.41381,1662.8,1662.0,1.507]
[1744626423109,12.41381,1662.8,1662.0,6.32042]
[1744626423110,9.62314,1662.7,1662.0,6.32042]
[1744626423295,12.41381,1662.8,1662.4,4.8122]
[1744626423494,12.41381,1662.8,1662.3,4.81247]
[1744626423793,4.81185,1662.6,1662.3,4.81247]
[1744626423988,17.22526,1662.8,1662.0,6.32044]
[1744626424193,4.81273,1662.3,1661.9,4.81371]
[1744626424417,4.81289,1662.2,1661.5,4.81489]
[1744626424620,4.81289,1662.2,1661.9,4.81373]
[1744626424819,15.15895,1662.3,1662.1,4.81317]
[1744626424820,10.3463,1662.3,1662.1,4.81317]
[1744626425129,4.5419,1662.5,1662.2,4.81279]
[1744626425286,9.35394,1662.5,1662.2,4.81279]
[1744626425490,9.35394,1662.5,1662.1,4.81304]
[1744626425826,4.8126,1662.3,1662.0,4.81347]
[1744626426120,4.81234,1662.4,1662.0,4.81337]
[1744626426325,4.81234,1662.4,1661.9,9.62742]
[1744626426326,4.81273,1662.3,1661.9,9.62742]
[1744626426722,4.81273,1662.3,1662.0,4.81342]
[1744626427025,4.81234,1662.4,1662.0,4.81334]
[1744626427199,4.5419,1662.5,1662.0,0.481334]
[1744626427518,1.5419,1662.5,1662.4,4.81231]
[1744626427711,4.8105,1663.1,1662.6,9.62348]
[1744626427712,10.2856,1663.0,1662.6,9.62348]
[1744626427894,19.9071,1663.0,1662.6,4.81174]
[1744626428095,1.5366,1663.0,1662.6,4.81159]
[1744626428291,1.5366,1663.3,1662.7,4.87159142]
[1744626428631,1.5366,1663.3,1662.9,4.81085]
[1744626428632,4.81015,1663.2,1662.9,4.81085]
[1744626428806,4.5366,1663.3,1662.5,5.29319]
[1744626429000,4.5366,1663.3,1662.2,13.51840002]
[1744626429001,1.5784,1663.0,1662.7,4.81116]
[1744626429215,1.5784,1663.0,1662.8,4.81105]
[1744626429528,9.62018,1663.2,1662.9,4.81087]
[1744626429529,1.6598,1663.2,1662.9,4.81087]
[1744626430042,1.6598,1663.2,1662.8,4.81106]
[1744626430352,1.6598,1663.2,1662.9,9.62147]
[1744626430639,4.81031,1663.1,1662.8,4.81112]
[1744626431239,4.81106,1662.9,1662.5,4.81197]
[1744626431540,4.81145,1662.7,1662.4,4.81221]
[1744626431732,4.81145,1662.7,1662.3,9.6252]
[1744626431930,4.81145,1662.7,1662.4,4.81228]
[1744626432250,1.5364,1662.8,1662.5,4.81188]
[1744626432421,6.34761,1662.8,1662.5,4.81188]
[1744626432604,1.5364,1662.8,1662.5,4.81188]
[1744626432805,6.34771,1662.8,1662.5,4.81188]
[1744626433006,6.34771,1662.8,1662.2,4.81285]
[1744626433007,4.81195,1662.6,1662.2,4.81285]
[1744626433245,4.81195,1662.6,1662.3,4.81254]
[1744626433444,9.62321,1662.7,1662.3,4.81254]
[1744626433758,4.81208,1662.5,1662.2,4.81288]
[1744626434308,4.81192,1662.6,1662.2,9.62563]
[1744626434525,4.81146,1662.7,1662.3,9.625]
[1744626434726,4.81183,1662.6,1662.3,4.81246]
[1744626434924,4.81204,1662.5,1662.2,4.81286]
[1744626435340,4.81204,1662.5,1661.9,8.07100002]
[1744626435341,4.81278,1662.3,1661.9,4.8137]
[1744626435644,4.81278,1662.3,1662.0,4.81338]
[1744626435841,14.87777,1662.4,1662.0,9.62676]
[1744626436209,19.69024,1662.4,1662.0,9.62676]
[1744626436623,14.87777,1662.4,1662.1,4.81318]
[1744626436824,8.431,1662.4,1662.3,4.8126]
[1744626437041,8.431,1662.4,1662.2,4.81276]
[1744626437243,8.431,1662.4,1662.2,9.62554]
[1744626437442,8.431,1662.4,1662.2,4.81276]
[1744626437610,8.431,1662.4,1662.1,9.62628]
[1744626437812,8.431,1662.4,1662.2,4.81286]
[1744626438418,8.431,1662.4,1662.0,4.81338]
[1744626438651,6.4734,1662.3,1661.9,4.81375]
[1744626438847,4.81361,1662.0,1661.7,4.81428]
[1744626439153,1.6607,1661.9,1661.6,9.62918]
[1744626439322,1.6607,1661.9,1661.7,4.81432]
[1744626440658,1.5822,1661.7,1661.2,4.81577]
[1744626440950,4.81503,1661.5,1661.1,9.63185]
[1744626441127,4.5822,1661.7,1660.7,3.25730002]
[1744626441330,10.69811,1661.7,1661.3,4.81549]
[1744626441556,10.69802,1661.7,1661.3,4.8153]
[1744626441752,15.51263,1661.7,1661.3,4.8153]
[1744626441964,1.5822,1661.7,1661.6,4.81463]
[1744626442454,1.5822,1661.7,1661.5,4.8148]
[1744626442955,1.5822,1661.7,1661.4,4.81507]
[1744626443359,6.39657,1661.7,1661.3,9.63086]
[1744626443827,6.39663,1661.7,1661.1,0.0601899]
[1744626444028,11.21116,1661.7,1661.3,4.81533]
[1744626444239,4.81478,1661.6,1661.3,4.81545]
[1744626444452,1.5822,1661.7,1661.2,0.06019393]
[1744626444753,4.81471,1661.6,1661.3,4.81533]
[1744626444970,4.81471,1661.6,1661.2,4.81575]
[1744626445152,4.81471,1661.6,1661.2,4.81566]
[1744626445453,4.81471,1661.6,1661.3,4.8155]
[1744626445621,1.5624395,1661.6,1661.1,4.81606]
[1744626445822,5.2560545,1661.6,1661.2,4.81567]
[1744626446017,4.81474,1661.6,1661.3,4.8154]
[1744626446325,4.81524,1661.4,1661.0,4.81612]
[1744626446554,1.639,1661.3,1661.0,9.63236]
[1744626446854,1.6024,1661.5,1660.9,4.81643]
[1744626447022,1.6024,1661.5,1661.3,4.8153]
[1744626447220,6.41747,1661.5,1661.1,9.63199]
[1744626447443,4.81563,1661.3,1660.9,4.81656]
[1744626447652,6.41733,1661.5,1661.1,4.81608]
[1744626447856,6.41733,1661.5,1661.2,4.81576]
[1744626448056,1.6024,1661.5,1661.4,4.81521]
[1744626448259,10.068,1661.8,1661.7,4.81434]
[1744626448791,10.068,1661.8,1661.6,4.8145]
[1744626448922,10.068,1661.8,1661.6,4.81452]
[1744626449122,10.068,1661.8,1661.7,4.81434]
[1744626449321,10.068,1661.8,1661.6,4.81451]
[1744626449560,1.6024,1662.1,1661.6,5.777439]
[1744626449760,7.0131,1662.4,1662.0,9.62694]
[1744626449761,8.435,1662.4,1662.0,9.62694]
[1744626450055,8.435,1662.4,1662.0,4.81347]
[1744626450056,14.84982,1662.4,1662.0,4.81347]
[1744626450364,1.6204,1662.7,1662.5,4.81191]
[1744626450535,1.6204,1662.7,1662.5,4.81193]
[1744626450929,1.6204,1662.7,1662.5,9.62382]
[1744626451124,8.435,1662.9,1662.6,4.81174]
[1744626451327,16.56015663,1662.9,1662.0,4.81347]
[1744626451528,4.81119,1662.8,1662.4,9.62446]
[1744626451744,9.9714,1662.9,1662.6,4.81159]
[1744626452123,8.435,1662.9,1662.8,4.81116]
[1744626452323,8.435,1662.9,1662.7,4.81133]
[1744626452324,8.435,1662.9,1662.7,4.81129]
[1744626452553,8.435,1662.9,1662.5,4.81185]
[1744626452554,13.24593,1662.9,1662.5,4.81185]
[1744626452755,6.37191,1662.8,1662.4,4.81231]
[1744626452962,6.37186,1662.8,1662.3,4.8126]
[1744626453166,6.37186,1662.8,1662.0,6.45402]
[1744626453167,1.5607,1662.8,1662.1,4.81318]
[1744626453369,1.5607,1662.8,1662.5,4.81174]
[1744626453541,1.5607,1662.8,1662.6,4.81164]
[1744626453745,8.435,1662.9,1662.6,4.81156]
[1744626454075,8.435,1662.9,1662.6,9.62315]
[1744626454658,8.435,1662.9,1662.8,4.81116]
[1744626454862,8.435,1662.9,1662.7,9.6227]
[1744626455170,8.435,1662.9,1662.6,5.774015]
[1744626455376,8.435,1662.9,1662.6,9.62333]
[1744626455675,8.435,1662.9,1662.8,4.81116]
[1744626456052,8.435,1662.9,1662.7,4.81132]
[1744626456294,8.435,1662.9,1662.7,4.81129]
[1744626456450,8.435,1662.9,1662.7,5.292419]
[1744626456661,8.435,1662.9,1662.6,9.62331]
[1744626456857,13.24598,1662.9,1662.5,4.81202]
[1744626457065,8.435,1662.9,1662.7,4.81129]
[1744626457452,8.435,1662.9,1662.3,1.5276]
[1744626457453,13.24601,1662.9,1662.5,4.81198]
[1744626457652,4.81121,1662.8,1662.5,4.81198]
[1744626457870,4.81158,1662.7,1662.3,4.8126]
[1744626458051,4.81244,1662.4,1662.0,9.62677]
[1744626458259,13.24444,1662.4,1662.0,4.81335]
[1744626458484,13.24444,1662.4,1662.1,4.81318]
[1744626458847,13.24444,1662.4,1662.0,4.81335]
[1744626459054,18.05692,1662.4,1662.0,4.81334]
[1744626459346,13.24444,1662.4,1662.0,4.81334]
[1744626459739,6.38215,1662.3,1661.9,4.81372]
[1744626459968,4.81301,1662.2,1661.8,4.81393]
[1744626460182,6.38204,1662.3,1661.8,4.81393]
[1744626460382,4.81303,1662.2,1661.8,9.62784]
[1744626460680,4.81303,1662.2,1661.8,4.81391]
[1744626460891,6.38203,1662.3,1661.9,4.81364]
[1744626461248,11.19481,1662.3,1661.9,4.81364]
[1744626461500,6.38203,1662.3,1661.9,4.81364]
[1744626461652,6.38203,1662.3,1661.9,9.62729]
[1744626461852,6.38203,1662.3,1661.9,9.62731]
[1744626462359,6.82468947,1662.3,1661.9,4.81364]
[1744626462587,1.5694,1662.3,1661.7,4.81424]
[1744626462798,4.81337,1662.1,1661.7,4.81424]
[1744626462975,4.8136,1662.0,1661.6,4.81441]
[1744626463176,14.85279,1661.9,1661.5,9.62968]
[1744626463370,14.85279,1661.9,1661.6,4.81459]
[1744626463584,14.85279,1661.9,1661.5,4.81477]
[1744626463806,4.81414,1661.8,1661.5,4.81477]
[1744626464083,9.62835,1661.8,1661.4,4.81518]
[1744626464388,10.039,1661.9,1661.6,4.81443]
[1744626464589,10.039,1661.9,1661.6,9.62896]
[1744626464901,4.8141,1661.8,1661.5,4.81491]
[1744626465393,10.039,1661.9,1661.6,9.62891]
[1744626465805,10.039,1661.9,1661.6,4.8144]
[1744626466094,10.039,1661.9,1661.7,4.81434]
[1744626466251,10.039,1661.9,1661.7,9.62855]
[1744626466455,8.433,1661.9,1661.8,4.81405]
[1744626468577,8.433,1661.9,1661.7,9.62847]
[1744626468825,8.433,1661.9,1661.7,9.62845]
[1744626468993,8.433,1661.9,1661.7,4.81421]
[1744626469196,8.433,1661.9,1661.6,4.81457]
[1744626469507,11.26582,1661.8,1661.5,4.81486]
[1744626469690,11.26582,1661.8,1661.2,2.568775]
[1744626469691,6.45162,1661.8,1661.4,4.81514]
[1744626469894,6.45162,1661.8,1661.4,9.63026]
[1744626470271,1.6375,1661.8,1661.4,0.963026]
[1744626470471,1.6375,1661.8,1661.7,4.81434]
[1744626470676,8.433,1661.9,1661.8,4.81405]
[1744626473849,8.433,1661.9,1661.7,4.81421]
[1744626474198,8.433,1661.9,1661.6,4.8146]
[1744626474527,8.433,1661.9,1661.4,5.778236]
[1744626474827,4.81417,1661.8,1661.4,9.63032]
[1744626474975,1.5301,1661.7,1661.4,9.63032]
[1744626475196,1.5301,1661.7,1660.2,4.81862]
[1744626475197,1.5301,1661.4,1660.2,4.81862]
[1744626475545,8.151,1661.3,1660.9,4.81654]
[1744626475728,8.151,1661.3,1661.1,4.81607]
[1744626476309,55.069,1661.6,1661.3,4.81541]
[1744626476507,59.88363,1661.6,1661.3,4.81541]
[1744626476918,59.88363,1661.6,1661.2,9.63124]
[1744626477109,59.88363,1661.6,1661.3,4.8155]
[1744626477301,55.069,1661.6,1661.3,4.81536]
[1744626477804,55.069,1661.6,1661.3,0.481536]
[1744626478131,55.069,1661.6,1661.4,4.81493]
[1744626478327,55.069,1661.6,1661.4,9.63]
[1744626478526,55.069,1661.6,1661.5,4.81492]
[1744626478871,8.151,1661.6,1661.5,4.81492]
[1744626479398,8.151,1661.6,1661.4,4.81493]
[1744626479912,8.151,1661.6,1661.1,6.816777]
[1744626479913,12.96583,1661.6,1661.2,4.81575]
[1744626480122,4.81503,1661.5,1661.2,4.81578]
[1744626480325,4.81539,1661.4,1661.0,4.81637]
[1744626480552,4.8157,1661.3,1660.9,4.81662]
[1744626480748,4.8157,1661.3,1660.9,9.63318]
[1744626481056,4.81572,1661.3,1660.9,4.81662]
[1744626481354,5.943303,1661.5,1660.9,5.780013]
[1744626481562,9.46162,1661.5,1661.2,4.81561]
[1744626481866,6.46162,1661.5,1661.2,4.81561]
[1744626482142,6.46162,1661.5,1661.1,9.63196]
[1744626482311,6.46162,1661.5,1661.1,4.81594]
[1744626482723,1.6467,1661.5,1661.4,4.81521]
[1744626482927,12.96565,1661.6,1661.3,4.81549]
[1744626483159,8.151,1661.6,1661.4,4.81512]
[1744626483347,8.151,1661.6,1661.5,4.81492]
[1744626483546,8.151,1661.6,1661.4,4.81512]
[1744626483746,8.151,1661.6,1661.4,4.8151]
[1744626483945,8.151,1661.6,1661.5,4.81492]
[1744626484542,8.151,1661.6,1661.4,9.63019]
[1744626484743,1.6174,1661.9,1661.6,4.81438]
[1744626484942,6.43128,1661.9,1661.3,4.81549]
[1744626485266,12.96652,1662.0,1661.7,9.62849]
[1744626485267,8.153,1662.0,1661.7,9.62849]
[1744626485454,8.153,1662.0,1661.8,4.81402]
[1744626485656,8.153,1662.0,1661.9,4.81376]
[1744626485864,46.923,1662.3,1661.9,4.81359]
[1744626486057,60.33160837,1662.3,1661.9,9.62718]
[1744626486258,59.88873,1662.3,1662.0,4.81338]
[1744626486431,1.6053,1662.4,1662.1,4.81304]
[1744626486633,1.5823,1662.7,1662.3,4.81233]
[1744626486840,4.81178,1662.6,1662.3,4.81233]
[1744626487259,9.62369,1662.6,1662.2,4.81285]
[1744626487458,4.81178,1662.6,1662.2,4.81285]
[1744626487652,4.81212,1662.5,1662.2,4.81285]
[1744626488253,4.81282,1662.3,1661.9,4.81366]
[1744626488453,4.81299,1662.2,1661.9,4.81366]
[1744626488763,4.81289,1662.2,1661.7,4.81431]
[1744626488936,4.81337,1662.1,1661.8,4.81405]
[1744626489345,12.96462,1662.3,1661.9,4.81372]
[1744626489551,12.96462,1662.3,1661.9,4.81363]
[1744626489749,4.81294,1662.2,1661.9,4.81363]
[1744626489970,11.403866,1662.2,1661.8,4.81403]
[1744626490131,4.8132,1662.1,1661.8,4.81403]
[1744626490339,4.813,1662.2,1661.8,4.8139]
[1744626490639,9.62617,1662.2,1661.8,4.8139]
[1744626491259,9.62657,1662.1,1661.7,4.81429]
[1744626491459,9.62657,1662.1,1661.6,6.36829]
[1744626491460,4.81362,1662.0,1661.6,6.3683]
[1744626491662,4.81393,1661.9,1661.5,9.62973]
[1744626491851,4.81393,1661.9,1661.6,4.81459]
[1744626492255,4.81419,1661.8,1661.4,6.47068]
[1744626492475,4.81419,1661.8,1661.5,9.62969]
[1744626492676,0.962795,1661.8,1661.5,4.81465]
[1744626492970,1.5013,1662.0,1661.8,4.81389]
[1744626493170,1.5013,1662.0,1661.3,4.8155]
[1744626493171,9.7064,1662.3,1662.0,4.8133]
[1744626493339,14.51902,1662.3,1662.0,4.8133]
[1744626493668,8.152,1662.3,1662.2,4.81289]
[1744626494171,8.152,1662.3,1662.1,4.81304]
[1744626494532,8.152,1662.3,1662.1,9.62614]
[1744626494732,8.152,1662.3,1662.0,4.81338]
[1744626495038,8.152,1662.3,1662.0,4.81337]
[1744626495238,8.152,1662.3,1662.0,4.81336]
[1744626495470,8.152,1662.3,1662.1,4.81309]
[1744626495876,8.152,1662.3,1662.0,9.6267]
[1744626496170,8.152,1662.3,1662.1,4.81308]
[1744626496471,8.152,1662.3,1662.2,4.81289]
[1744626498001,1.5524,1662.8,1662.2,1.443899]
[1744626498186,1.5524,1662.8,1662.5,4.81188]
[1744626498353,1.5524,1662.8,1662.6,4.81173]
[1744626498759,6.36363,1662.8,1662.5,4.81188]
[1744626498959,6.36363,1662.8,1662.4,9.62441]
[1744626499179,6.36363,1662.8,1662.1,6.34922]
[1744626499180,1.5524,1662.8,1662.2,4.81283]
[1744626499374,9.62388,1662.6,1662.2,9.62556]
[1744626499568,4.81203,1662.5,1662.2,4.81276]
[1744626499791,7.852,1662.9,1662.3,4.8126]
[1744626499959,7.852,1662.9,1662.7,4.81131]
[1744626500159,7.852,1662.9,1662.6,4.81145]
[1744626500357,7.852,1662.9,1662.3,4.8126]
[1744626500358,4.81149,1662.7,1662.3,4.8126]
[1744626500593,6.43534,1662.6,1662.2,4.81287]
[1744626500773,4.81241,1662.4,1661.8,6.37886]
[1744626500961,4.81241,1662.4,1662.1,9.62627]
[1744626501289,4.81241,1662.4,1662.1,9.62617]
[1744626501494,9.4682,1662.9,1662.7,4.8113]
[1744626501704,14.7204283,1662.9,1662.5,4.8118]
[1744626502061,4.81125,1662.8,1662.5,4.8118]
[1744626502262,9.62259,1662.8,1662.4,4.81227]
[1744626502563,6.43105,1662.5,1662.1,4.81308]
[1744626502760,6.43105,1662.5,1662.1,9.62617]
[1744626503001,1.6189,1662.5,1662.0,4.81343]
[1744626503161,4.8126,1662.4,1662.0,9.62686]
[1744626503357,12.6636,1662.4,1662.0,4.81334]
[1744626503666,17.47614,1662.4,1662.0,4.81334]
[1744626503862,4.81266,1662.3,1662.0,4.81334]
[1744626504066,12.66354,1662.4,1662.1,4.81309]
[1744626504287,12.66351,1662.4,1662.0,4.81334]
[1744626504468,9.62604,1662.2,1661.8,4.81394]
[1744626504791,1.5859,1662.1,1661.8,4.81394]